[Event "*** SCC Grand Prix: Titled Tuesday Blitz"]
[Site "Chess.com"]
[Date "2020.06.02"]
[Round "3"]
[White "Lovinski"]
[Black "mirochka"]
[Result "1/2-1/2"]
[WhiteElo "2387"]
[BlackElo "2191"]
[TimeControl "180+1"]
[EndTime "10:26:47 PDT"]
[Termination "Game drawn by repetition"]

1. Nf3 {[%clk 0:03:00.9]} 1... c5 {[%clk 0:02:57.8]} 2. g3 {[%clk 0:03:01]} 2...
d5 {[%clk 0:02:56.2]} 3. Bg2 {[%clk 0:03:01]} 3... Nf6 {[%clk 0:02:55.2]} 4. O-O
{[%clk 0:02:59.1]} 4... Nc6 {[%clk 0:02:54.5]} 5. d4 {[%clk 0:02:59.2]} 5...
cxd4 {[%clk 0:02:52.1]} 6. Nxd4 {[%clk 0:03:00.1]} 6... e5 {[%clk 0:02:52.3]} 7.
Nxc6 {[%clk 0:03:00.4]} 7... bxc6 {[%clk 0:02:52.8]} 8. c4 {[%clk 0:03:01.3]}
8... Bc5 {[%clk 0:02:39.5]} 9. Nc3 {[%clk 0:02:57.7]} 9... Be6 {[%clk
0:02:34.6]} 10. Bg5 {[%clk 0:02:54.2]} 10... e4 {[%clk 0:02:24.5]} 11. cxd5
{[%clk 0:02:47.3]} 11... cxd5 {[%clk 0:02:22.5]} 12. Bxf6 {[%clk 0:02:44.1]}
12... gxf6 {[%clk 0:02:21.3]} 13. Rc1 {[%clk 0:02:37.6]} 13... Bb6 {[%clk
0:02:14.1]} 14. Qa4+ {[%clk 0:02:22.9]} 14... Qd7 {[%clk 0:02:12]} 15. Qxd7+
{[%clk 0:02:15.6]} 15... Kxd7 {[%clk 0:02:10.8]} 16. Rfd1 {[%clk 0:02:16.5]}
16... f5 {[%clk 0:02:05.4]} 17. Nxd5 {[%clk 0:02:12.9]} 17... Bxd5 {[%clk
0:02:05.1]} 18. Rxd5+ {[%clk 0:02:13.8]} 18... Ke6 {[%clk 0:02:05.3]} 19. Rcd1
{[%clk 0:02:07.4]} 19... Rhd8 {[%clk 0:01:59.6]} 20. Rxd8 {[%clk 0:01:50]} 20...
Rxd8 {[%clk 0:02:00.5]} 21. Rxd8 {[%clk 0:01:49.7]} 21... Bxd8 {[%clk
0:02:00.8]} 22. e3 {[%clk 0:01:49.6]} 22... a5 {[%clk 0:01:52.7]} 23. Kf1 {[%clk
0:01:49.2]} 23... Bf6 {[%clk 0:01:50.6]} 24. b3 {[%clk 0:01:45.5]} 24... Be7
{[%clk 0:01:42.5]} 25. Ke2 {[%clk 0:01:45.1]} 25... Bb4 {[%clk 0:01:39.7]} 26.
h4 {[%clk 0:01:32.3]} 26... h6 {[%clk 0:01:38.8]} 27. Bh3 {[%clk 0:01:30.2]}
27... Ke5 {[%clk 0:01:38.5]} 28. Kd1 {[%clk 0:01:28.4]} 28... f6 {[%clk
0:01:34.8]} 29. Bf1 {[%clk 0:01:27.3]} 29... Kd5 {[%clk 0:01:28.9]} 30. Bc4+
{[%clk 0:01:25.8]} 30... Ke5 {[%clk 0:01:29]} 31. Ke2 {[%clk 0:01:25.9]} 31...
Kd6 {[%clk 0:01:27.7]} 32. Bg8 {[%clk 0:01:25.2]} 32... Ke5 {[%clk 0:01:27.1]}
33. Bh7 {[%clk 0:01:24.3]} 33... Ke6 {[%clk 0:01:25.7]} 34. Bg8+ {[%clk
0:01:22.3]} 34... Ke5 {[%clk 0:01:25.1]} 35. Kd1 {[%clk 0:01:20.8]} 35... Ba3
{[%clk 0:01:22.2]} 36. Kc2 {[%clk 0:01:18.2]} 36... Bb4 {[%clk 0:01:22.4]} 37.
Kd1 {[%clk 0:01:14.4]} 37... Ba3 {[%clk 0:01:21.8]} 38. Ke2 {[%clk 0:01:08.5]}
38... Bb4 {[%clk 0:01:21.8]} 1/2-1/2

[Event "*** SCC Grand Prix: Titled Tuesday Blitz"]
[Site "Chess.com"]
[Date "2020.06.02"]
[Round "3"]
[White "Oglob71"]
[Black "FM_VS99"]
[Result "1-0"]
[WhiteElo "2518"]
[BlackElo "2305"]
[TimeControl "180+1"]
[EndTime "10:26:54 PDT"]
[Termination "Oglob71 won by resignation"]

1. d4 {[%clk 0:02:41.8]} 1... g6 {[%clk 0:03:00.9]} 2. Nf3 {[%clk 0:02:41.5]}
2... Bg7 {[%clk 0:02:58.9]} 3. c4 {[%clk 0:02:42.4]} 3... d6 {[%clk 0:02:59.1]}
4. Nc3 {[%clk 0:02:43.3]} 4... e5 {[%clk 0:02:58.7]} 5. dxe5 {[%clk 0:02:42.2]}
5... dxe5 {[%clk 0:02:59.6]} 6. Qxd8+ {[%clk 0:02:42.4]} 6... Kxd8 {[%clk
0:03:00.5]} 7. Bd2 {[%clk 0:02:41.3]} 7... c6 {[%clk 0:02:59.2]} 8. O-O-O {[%clk
0:02:40.9]} 8... Kc7 {[%clk 0:02:55.7]} 9. h3 {[%clk 0:02:41.1]} 9... f6 {[%clk
0:02:49]} 10. g4 {[%clk 0:02:41]} 10... Be6 {[%clk 0:02:46.9]} 11. b3 {[%clk
0:02:37.8]} 11... Nd7 {[%clk 0:02:46.8]} 12. Ne4 {[%clk 0:02:36.3]} 12... Nh6
{[%clk 0:02:44.5]} 13. Bg2 {[%clk 0:02:32.7]} 13... Nf7 {[%clk 0:02:43.5]} 14.
Bc3 {[%clk 0:02:32.2]} 14... f5 {[%clk 0:02:32.3]} 15. Neg5 {[%clk 0:02:24.5]}
15... Nxg5 {[%clk 0:02:20.4]} 16. Nxg5 {[%clk 0:02:24.4]} 16... Bh6 {[%clk
0:02:19.5]} 17. Bd2 {[%clk 0:02:24.3]} 17... Bxg5 {[%clk 0:02:14.1]} 18. Bxg5
{[%clk 0:02:23.8]} 18... fxg4 {[%clk 0:02:03.6]} 19. Be7 {[%clk 0:02:17.5]}
19... gxh3 {[%clk 0:01:59.2]} 20. Bxh3 {[%clk 0:02:15.7]} 20... Bxh3 {[%clk
0:01:57.8]} 21. Rxh3 {[%clk 0:02:16.1]} 21... Rae8 {[%clk 0:01:47.6]} 22. Bd6+
{[%clk 0:02:14.5]} 22... Kc8 {[%clk 0:01:46.9]} 23. Rdh1 {[%clk 0:01:58.2]}
23... Nf6 {[%clk 0:01:40.9]} 24. Rf3 {[%clk 0:01:51.4]} 24... Nh5 {[%clk
0:01:36.4]} 25. Rf7 {[%clk 0:01:47.5]} 25... Re6 {[%clk 0:01:29.8]} 26. Rc7+
{[%clk 0:01:41.5]} 26... Kd8 {[%clk 0:01:28.7]} 27. Rxb7 {[%clk 0:01:41.8]}
27... Rxd6 {[%clk 0:01:24.6]} 28. Rb8+ {[%clk 0:01:41.3]} 28... Ke7 {[%clk
0:01:23.2]} 29. Rxh8 {[%clk 0:01:42]} 29... Nf6 {[%clk 0:01:22.5]} 30. R8xh7+
{[%clk 0:01:40.4]} 30... Nxh7 {[%clk 0:01:19.2]} 31. Rxh7+ {[%clk 0:01:41.3]}
31... Kf6 {[%clk 0:01:14.3]} 32. Rxa7 {[%clk 0:01:41.8]} 32... e4 {[%clk
0:01:11]} 33. e3 {[%clk 0:01:36.6]} 33... Kg5 {[%clk 0:01:02.2]} 34. Rf7 {[%clk
0:01:36.2]} 34... Rd8 {[%clk 0:00:57.1]} 35. Rf4 {[%clk 0:01:34.7]} 1-0

[Event "*** SCC Grand Prix: Titled Tuesday Blitz"]
[Site "Chess.com"]
[Date "2020.06.02"]
[Round "3"]
[White "Happy1712Drummer"]
[Black "Gordima"]
[Result "0-1"]
[WhiteElo "2436"]
[BlackElo "2762"]
[TimeControl "180+1"]
[EndTime "10:26:59 PDT"]
[Termination "Gordima won on time"]

1. Nf3 {[%clk 0:02:22.5]} 1... d5 {[%clk 0:02:58.9]} 2. d4 {[%clk 0:02:22.9]}
2... Nf6 {[%clk 0:02:58.1]} 3. c4 {[%clk 0:02:21.6]} 3... e6 {[%clk 0:02:58.5]}
4. Nc3 {[%clk 0:02:21]} 4... Bb4 {[%clk 0:02:58.8]} 5. Qc2 {[%clk 0:02:00.3]}
5... dxc4 {[%clk 0:02:57.2]} 6. Bg5 {[%clk 0:01:53.3]} 6... b5 {[%clk
0:02:50.7]} 7. e3 {[%clk 0:01:42.5]} 7... a6 {[%clk 0:02:46.5]} 8. a4 {[%clk
0:01:40.9]} 8... Bb7 {[%clk 0:02:44.4]} 9. Nd2 {[%clk 0:01:35.9]} 9... Nbd7
{[%clk 0:02:35.7]} 10. f3 {[%clk 0:01:28.9]} 10... c6 {[%clk 0:02:15.8]} 11. e4
{[%clk 0:01:23.2]} 11... Qb6 {[%clk 0:02:13.1]} 12. Be3 {[%clk 0:01:18.8]} 12...
c5 {[%clk 0:02:10.3]} 13. a5 {[%clk 0:00:25.3]} 13... Qc7 {[%clk 0:02:07.4]} 14.
Ne2 {[%clk 0:00:19.5]} 14... cxd4 {[%clk 0:01:48.7]} 15. Nxd4 {[%clk 0:00:18.6]}
15... Bxa5 {[%clk 0:01:48.6]} 16. Be2 {[%clk 0:00:16.4]} 16... Bb6 {[%clk
0:01:48.8]} 17. O-O {[%clk 0:00:14.2]} 17... e5 {[%clk 0:01:36]} 18. Nf5 {[%clk
0:00:13.9]} 18... g6 {[%clk 0:01:31.7]} 19. Nxc4 {[%clk 0:00:03.1]} 19... bxc4
{[%clk 0:01:29.4]} 0-1

[Event "*** SCC Grand Prix: Titled Tuesday Blitz"]
[Site "Chess.com"]
[Date "2020.06.02"]
[Round "3"]
[White "OrtizMarcos"]
[Black "Trickov"]
[Result "1-0"]
[WhiteElo "2336"]
[BlackElo "2330"]
[TimeControl "180+1"]
[EndTime "10:27:00 PDT"]
[Termination "OrtizMarcos won by resignation"]

1. e4 {[%clk 0:03:00.9]} 1... c5 {[%clk 0:02:31.3]} 2. Nf3 {[%clk 0:03:00]} 2...
d6 {[%clk 0:02:26.6]} 3. d4 {[%clk 0:03:00.3]} 3... Nf6 {[%clk 0:02:26]} 4. Nc3
{[%clk 0:02:59.4]} 4... cxd4 {[%clk 0:02:25.4]} 5. Nxd4 {[%clk 0:03:00.3]} 5...
a6 {[%clk 0:02:20.6]} 6. Bg5 {[%clk 0:03:00.6]} 6... e6 {[%clk 0:02:20.1]} 7. f4
{[%clk 0:03:00.1]} 7... Qb6 {[%clk 0:02:20.4]} 8. Qd2 {[%clk 0:02:59.7]} 8...
Qxb2 {[%clk 0:02:20]} 9. Rb1 {[%clk 0:03:00.1]} 9... Qa3 {[%clk 0:02:20.5]} 10.
f5 {[%clk 0:03:00.6]} 10... Nc6 {[%clk 0:02:20]} 11. fxe6 {[%clk 0:02:58.7]}
11... fxe6 {[%clk 0:02:19.5]} 12. Nxc6 {[%clk 0:02:58.6]} 12... bxc6 {[%clk
0:02:19.7]} 13. Be2 {[%clk 0:02:59.5]} 13... Be7 {[%clk 0:02:15.4]} 14. O-O
{[%clk 0:02:59.9]} 14... O-O {[%clk 0:02:14.4]} 15. Rb3 {[%clk 0:03:00.3]} 15...
Qa5 {[%clk 0:02:02.5]} 16. Nd5 {[%clk 0:02:57.9]} 16... Qxd2 {[%clk 0:01:55.5]}
17. Nxe7+ {[%clk 0:02:57.4]} 17... Kf7 {[%clk 0:01:56]} 18. Bxd2 {[%clk
0:02:58.3]} 18... Kxe7 {[%clk 0:01:56.1]} 19. e5 {[%clk 0:02:59.2]} 19... dxe5
{[%clk 0:01:32.6]} 20. Bb4+ {[%clk 0:02:58.6]} 20... Kf7 {[%clk 0:01:32.2]} 21.
Bxf8 {[%clk 0:02:40.9]} 21... Kxf8 {[%clk 0:01:30.6]} 22. Bf3 {[%clk 0:02:41.8]}
22... Bd7 {[%clk 0:01:29.9]} 23. Rb7 {[%clk 0:02:40.4]} 23... Be8 {[%clk
0:01:21.1]} 24. Re1 {[%clk 0:02:23.3]} 24... Rd8 {[%clk 0:01:02.3]} 25. Rxe5
{[%clk 0:02:21.7]} 25... Rd2 {[%clk 0:01:02.7]} 26. Rc5 {[%clk 0:02:15.7]} 26...
Nd5 {[%clk 0:00:58.1]} 27. c4 {[%clk 0:02:07.3]} 27... Nf4 {[%clk 0:00:50.3]}
28. h3 {[%clk 0:01:31.5]} 28... Nd3 {[%clk 0:00:48]} 29. Ra5 {[%clk 0:01:26.4]}
29... Ne5 {[%clk 0:00:42]} 30. Rxe5 {[%clk 0:01:17.3]} 1-0

[Event "*** SCC Grand Prix: Titled Tuesday Blitz"]
[Site "Chess.com"]
[Date "2020.06.02"]
[Round "3"]
[White "reniite"]
[Black "Zmof"]
[Result "0-1"]
[WhiteElo "1814"]
[BlackElo "2244"]
[TimeControl "180+1"]
[EndTime "10:27:01 PDT"]
[Termination "Zmof won by resignation"]

1. e4 {[%clk 0:02:56.1]} 1... c5 {[%clk 0:02:51]} 2. Nf3 {[%clk 0:02:52.7]} 2...
Nc6 {[%clk 0:02:50.3]} 3. d4 {[%clk 0:02:50.3]} 3... cxd4 {[%clk 0:02:50.1]} 4.
Nxd4 {[%clk 0:02:51.2]} 4... Qb6 {[%clk 0:02:50.7]} 5. Nb3 {[%clk 0:02:49.5]}
5... Nf6 {[%clk 0:02:50]} 6. Nc3 {[%clk 0:02:50]} 6... e6 {[%clk 0:02:49.7]} 7.
Be2 {[%clk 0:02:25.5]} 7... Bb4 {[%clk 0:02:47.5]} 8. Be3 {[%clk 0:02:23.4]}
8... Qc7 {[%clk 0:02:46.5]} 9. Qd3 {[%clk 0:02:14.5]} 9... d5 {[%clk 0:02:44.4]}
10. exd5 {[%clk 0:02:09]} 10... Nxd5 {[%clk 0:02:43.5]} 11. Bd2 {[%clk
0:02:07.3]} 11... Nxc3 {[%clk 0:02:41.2]} 12. Bxc3 {[%clk 0:02:04.8]} 12...
Bxc3+ {[%clk 0:02:40.9]} 13. Qxc3 {[%clk 0:02:05.3]} 13... Qe5 {[%clk
0:02:30.3]} 14. Qxe5 {[%clk 0:02:04.1]} 14... Nxe5 {[%clk 0:02:29.2]} 15. f4
{[%clk 0:02:04]} 15... Nc6 {[%clk 0:02:23.8]} 16. Bf3 {[%clk 0:02:03.6]} 16...
Bd7 {[%clk 0:02:23.2]} 17. O-O-O {[%clk 0:01:50.1]} 17... O-O-O {[%clk
0:02:22.3]} 18. Nc5 {[%clk 0:01:49.6]} 18... Kc7 {[%clk 0:02:11.4]} 19. Nxd7
{[%clk 0:01:36.6]} 19... Rxd7 {[%clk 0:02:09.8]} 20. Rxd7+ {[%clk 0:01:37.5]}
20... Kxd7 {[%clk 0:02:09.2]} 21. Rd1+ {[%clk 0:01:38.4]} 21... Kc7 {[%clk
0:02:09.1]} 22. Bxc6 {[%clk 0:01:38.8]} 22... Kxc6 {[%clk 0:02:08.2]} 23. g3
{[%clk 0:01:39.3]} 23... h5 {[%clk 0:02:04.9]} 24. c4 {[%clk 0:01:36.9]} 24...
h4 {[%clk 0:02:00.3]} 25. Rg1 {[%clk 0:01:29.7]} 25... hxg3 {[%clk 0:01:58.1]}
26. hxg3 {[%clk 0:01:29.5]} 26... Rh2 {[%clk 0:01:55.8]} 27. g4 {[%clk
0:01:26.1]} 27... Kc5 {[%clk 0:01:53.9]} 28. b3 {[%clk 0:01:25.4]} 28... Kd4
{[%clk 0:01:32.7]} 29. f5 {[%clk 0:01:20.9]} 29... e5 {[%clk 0:01:28.2]} 30. Kb1
{[%clk 0:01:19]} 30... e4 {[%clk 0:01:27.4]} 31. g5 {[%clk 0:01:19.2]} 31... e3
{[%clk 0:01:26.2]} 32. Rd1+ {[%clk 0:01:18.4]} 32... Ke4 {[%clk 0:01:22.4]} 33.
f6 {[%clk 0:01:16.3]} 33... gxf6 {[%clk 0:01:21.3]} 34. Rd7 {[%clk 0:01:15.7]}
34... fxg5 {[%clk 0:01:04.4]} 35. Re7+ {[%clk 0:01:14.7]} 35... Kd3 {[%clk
0:01:02]} 36. Rd7+ {[%clk 0:01:14.9]} 36... Kc3 {[%clk 0:01:01.8]} 0-1

[Event "*** SCC Grand Prix: Titled Tuesday Blitz"]
[Site "Chess.com"]
[Date "2020.06.02"]
[Round "3"]
[White "aa175"]
[Black "kidagent"]
[Result "1-0"]
[WhiteElo "2472"]
[BlackElo "2203"]
[TimeControl "180+1"]
[EndTime "10:27:02 PDT"]
[Termination "aa175 won by resignation"]

1. d4 {[%clk 0:03:00.9]} 1... d5 {[%clk 0:02:59.5]} 2. Bf4 {[%clk 0:03:00.5]}
2... Nf6 {[%clk 0:02:58]} 3. e3 {[%clk 0:02:59.8]} 3... c6 {[%clk 0:02:52.1]} 4.
Nf3 {[%clk 0:03:00.3]} 4... Bg4 {[%clk 0:02:50.8]} 5. h3 {[%clk 0:02:57.7]} 5...
Bh5 {[%clk 0:02:49.9]} 6. c4 {[%clk 0:02:57.7]} 6... e6 {[%clk 0:02:43.6]} 7.
Qb3 {[%clk 0:02:57.3]} 7... Qc8 {[%clk 0:02:42.1]} 8. Nc3 {[%clk 0:02:55.9]}
8... Nbd7 {[%clk 0:02:38.3]} 9. Rc1 {[%clk 0:02:55.1]} 9... dxc4 {[%clk
0:02:32.1]} 10. Bxc4 {[%clk 0:02:53.3]} 10... Nb6 {[%clk 0:02:31.9]} 11. Bd3
{[%clk 0:02:48.4]} 11... Nfd5 {[%clk 0:02:17.3]} 12. Bg3 {[%clk 0:02:40.9]}
12... Bb4 {[%clk 0:02:16]} 13. Ne5 {[%clk 0:02:35.5]} 13... O-O {[%clk
0:02:12.1]} 14. a3 {[%clk 0:02:30.7]} 14... Nxc3 {[%clk 0:01:41.6]} 15. bxc3
{[%clk 0:02:31.6]} 15... Be7 {[%clk 0:01:36.3]} 16. c4 {[%clk 0:02:22.6]} 16...
Bg6 {[%clk 0:01:31.8]} 17. Nxg6 {[%clk 0:02:20.2]} 17... hxg6 {[%clk 0:01:32.3]}
18. c5 {[%clk 0:02:18.9]} 18... Nd5 {[%clk 0:01:30]} 19. e4 {[%clk 0:02:18.7]}
19... Nf6 {[%clk 0:01:27]} 20. Bd6 {[%clk 0:02:19.2]} 20... Bxd6 {[%clk
0:01:21.3]} 21. cxd6 {[%clk 0:02:18.2]} 21... Qd7 {[%clk 0:01:16.6]} 22. O-O
{[%clk 0:02:15.1]} 22... Rfe8 {[%clk 0:01:15]} 23. e5 {[%clk 0:02:06.9]} 23...
Nd5 {[%clk 0:01:14.2]} 24. Be4 {[%clk 0:02:05.5]} 24... Rab8 {[%clk 0:00:50.5]}
25. Bxd5 {[%clk 0:02:04.5]} 25... exd5 {[%clk 0:00:48.2]} 26. Qa4 {[%clk
0:02:04.4]} 26... b6 {[%clk 0:00:45.4]} 27. Qxc6 {[%clk 0:02:02.7]} 27... Qxc6
{[%clk 0:00:44.3]} 28. Rxc6 {[%clk 0:02:03.6]} 28... Kf8 {[%clk 0:00:37.7]} 29.
Rc7 {[%clk 0:02:01.9]} 29... a5 {[%clk 0:00:34.9]} 30. Rfc1 {[%clk 0:02:02.2]}
30... Red8 {[%clk 0:00:34.3]} 31. Ra7 {[%clk 0:02:00.4]} 31... Rdc8 {[%clk
0:00:32]} 32. Rxc8+ {[%clk 0:01:54.7]} 32... Rxc8 {[%clk 0:00:32]} 33. Rb7
{[%clk 0:01:55.6]} 33... Rc1+ {[%clk 0:00:21.3]} 34. Kh2 {[%clk 0:01:53.8]}
34... Ke8 {[%clk 0:00:22.2]} 35. Rxb6 {[%clk 0:01:49.1]} 35... Kd7 {[%clk
0:00:21.7]} 36. Rb7+ {[%clk 0:01:49]} 36... Ke6 {[%clk 0:00:20.5]} 37. Re7+
{[%clk 0:01:47.7]} 1-0

[Event "*** SCC Grand Prix: Titled Tuesday Blitz"]
[Site "Chess.com"]
[Date "2020.06.02"]
[Round "3"]
[White "JozefKneht"]
[Black "AsselLesbekova"]
[Result "1-0"]
[WhiteElo "2507"]
[BlackElo "2288"]
[TimeControl "180+1"]
[EndTime "10:27:03 PDT"]
[Termination "JozefKneht won by checkmate"]

1. e4 {[%clk 0:03:00.9]} 1... c5 {[%clk 0:02:59.3]} 2. Nf3 {[%clk 0:03:00]} 2...
Nc6 {[%clk 0:03:00]} 3. d4 {[%clk 0:02:58.4]} 3... cxd4 {[%clk 0:03:00.9]} 4.
Nxd4 {[%clk 0:02:59.3]} 4... e5 {[%clk 0:03:01.3]} 5. Nb5 {[%clk 0:02:58.7]}
5... d6 {[%clk 0:03:01.7]} 6. c4 {[%clk 0:02:57.9]} 6... Be7 {[%clk 0:03:00.9]}
7. N1c3 {[%clk 0:02:57.1]} 7... a6 {[%clk 0:03:01.6]} 8. Na3 {[%clk 0:02:56.9]}
8... Be6 {[%clk 0:03:02.3]} 9. Be2 {[%clk 0:02:55.3]} 9... Nf6 {[%clk
0:03:01.1]} 10. O-O {[%clk 0:02:55]} 10... Rc8 {[%clk 0:03:01.4]} 11. Be3 {[%clk
0:02:54.9]} 11... O-O {[%clk 0:03:01]} 12. Qd2 {[%clk 0:02:47.9]} 12... Nd7
{[%clk 0:02:57.9]} 13. Rac1 {[%clk 0:02:42.5]} 13... f5 {[%clk 0:02:58.1]} 14.
exf5 {[%clk 0:02:40.6]} 14... Bxf5 {[%clk 0:02:59]} 15. Nd5 {[%clk 0:02:37.2]}
15... Nf6 {[%clk 0:02:55]} 16. Nxf6+ {[%clk 0:02:21.1]} 16... Bxf6 {[%clk
0:02:54.1]} 17. Nc2 {[%clk 0:02:20.7]} 17... Bxc2 {[%clk 0:02:51.7]} 18. Rxc2
{[%clk 0:02:19.6]} 18... Nd4 {[%clk 0:02:51.9]} 19. Bxd4 {[%clk 0:02:19.5]}
19... exd4 {[%clk 0:02:52.8]} 20. Bf3 {[%clk 0:02:18.9]} 20... b5 {[%clk
0:02:50.9]} 21. cxb5 {[%clk 0:01:54.6]} 21... axb5 {[%clk 0:02:50]} 22. Qd3
{[%clk 0:01:47.7]} 22... Qb6 {[%clk 0:02:47.5]} 23. Bd5+ {[%clk 0:01:44.6]}
23... Kh8 {[%clk 0:02:46.9]} 24. Re2 {[%clk 0:01:39.5]} 24... Rc5 {[%clk
0:02:43.3]} 25. Bb3 {[%clk 0:01:37.4]} 25... b4 {[%clk 0:02:42.9]} 26. Bc2
{[%clk 0:01:26.8]} 26... g6 {[%clk 0:02:40.4]} 27. g3 {[%clk 0:01:25.8]} 27...
Qc6 {[%clk 0:02:35.9]} 28. h4 {[%clk 0:01:20.9]} 28... Rc8 {[%clk 0:02:35.9]}
29. Bb3 {[%clk 0:01:18.4]} 29... Rc1 {[%clk 0:02:34.5]} 30. Ree1 {[%clk
0:01:16.2]} 30... Rxe1 {[%clk 0:02:32.3]} 31. Rxe1 {[%clk 0:01:16]} 31... Kg7
{[%clk 0:02:29.9]} 32. Kh2 {[%clk 0:01:02.5]} 32... Be5 {[%clk 0:02:27.5]} 33.
Qe2 {[%clk 0:00:48.6]} 33... Rf8 {[%clk 0:02:25.5]} 34. f4 {[%clk 0:00:44.3]}
34... Bf6 {[%clk 0:02:25.3]} 35. Bc2 {[%clk 0:00:36.2]} 35... Kf7 {[%clk
0:02:19.1]} 36. h5 {[%clk 0:00:30.2]} 36... g5 {[%clk 0:02:15.5]} 37. h6 {[%clk
0:00:20.6]} 37... gxf4 {[%clk 0:02:09.1]} 38. Qe6# {[%clk 0:00:17.7]} 1-0

[Event "*** SCC Grand Prix: Titled Tuesday Blitz"]
[Site "Chess.com"]
[Date "2020.06.02"]
[Round "3"]
[White "PavelChernomordik"]
[Black "larisakalinina"]
[Result "0-1"]
[WhiteElo "2245"]
[BlackElo "1966"]
[TimeControl "180+1"]
[EndTime "10:27:07 PDT"]
[Termination "larisakalinina won by resignation"]

1. e4 {[%clk 0:02:59.5]} 1... c5 {[%clk 0:03:00]} 2. Nf3 {[%clk 0:02:58.2]} 2...
Nc6 {[%clk 0:03:00.3]} 3. Bb5 {[%clk 0:02:57.9]} 3... g6 {[%clk 0:02:59.2]} 4.
Bxc6 {[%clk 0:02:58]} 4... dxc6 {[%clk 0:02:59.6]} 5. O-O {[%clk 0:02:57.4]}
5... Bg7 {[%clk 0:02:59.9]} 6. d3 {[%clk 0:02:57]} 6... Bg4 {[%clk 0:02:54.6]}
7. h3 {[%clk 0:02:56.1]} 7... Bxf3 {[%clk 0:02:54.5]} 8. Qxf3 {[%clk 0:02:55.2]}
8... e5 {[%clk 0:02:54]} 9. Be3 {[%clk 0:02:53.1]} 9... Qe7 {[%clk 0:02:52.2]}
10. Nd2 {[%clk 0:02:51]} 10... Nf6 {[%clk 0:02:50.5]} 11. Qe2 {[%clk 0:02:45.5]}
11... O-O {[%clk 0:02:46.7]} 12. a4 {[%clk 0:02:41.7]} 12... a5 {[%clk
0:02:44.8]} 13. Nc4 {[%clk 0:02:39.3]} 13... Ne8 {[%clk 0:02:33.2]} 14. f4
{[%clk 0:02:35.1]} 14... exf4 {[%clk 0:02:26.9]} 15. Bxf4 {[%clk 0:02:33.3]}
15... b5 {[%clk 0:02:20.1]} 16. axb5 {[%clk 0:02:31.3]} 16... cxb5 {[%clk
0:02:18.7]} 17. Nb6 {[%clk 0:02:29.9]} 17... Bxb2 {[%clk 0:02:14]} 18. Nxa8
{[%clk 0:02:25.1]} 18... Bxa1 {[%clk 0:02:12]} 19. Rxa1 {[%clk 0:02:24.8]} 19...
Qa7 {[%clk 0:02:11.4]} 20. Bh6 {[%clk 0:02:19.3]} 20... Ng7 {[%clk 0:02:06.3]}
21. Qf2 {[%clk 0:02:19.1]} 21... f5 {[%clk 0:01:59.2]} 22. e5 {[%clk 0:02:13.3]}
22... Rxa8 {[%clk 0:01:55.2]} 23. Be3 {[%clk 0:02:10.8]} 23... Ne6 {[%clk
0:01:54.8]} 24. g4 {[%clk 0:02:07.7]} 24... f4 {[%clk 0:01:52.5]} 25. Bd2 {[%clk
0:02:04.3]} 25... a4 {[%clk 0:01:51.3]} 26. Qf3 {[%clk 0:02:03.4]} 26... Rd8
{[%clk 0:01:44.6]} 27. Qc6 {[%clk 0:02:01.5]} 27... Qd7 {[%clk 0:01:43.3]} 28.
Qe4 {[%clk 0:01:59]} 28... Qd4+ {[%clk 0:01:40.3]} 29. Qxd4 {[%clk 0:01:56.7]}
29... Rxd4 {[%clk 0:01:38.5]} 30. Bc3 {[%clk 0:01:53.5]} 30... Rd7 {[%clk
0:01:30.1]} 31. Kg2 {[%clk 0:01:54.4]} 31... b4 {[%clk 0:01:29.9]} 32. Bd2
{[%clk 0:01:50.5]} 32... a3 {[%clk 0:01:30.1]} 33. c3 {[%clk 0:01:47.9]} 33...
Rxd3 {[%clk 0:01:19.3]} 34. Be1 {[%clk 0:01:46.4]} 34... b3 {[%clk 0:01:06.4]}
35. Rxa3 {[%clk 0:01:44.7]} 35... b2 {[%clk 0:01:06.7]} 36. Rb3 {[%clk 0:01:44]}
36... Rd1 {[%clk 0:01:07]} 37. Rxb2 {[%clk 0:01:42.6]} 37... Rxe1 {[%clk
0:01:06.8]} 38. Rb7 {[%clk 0:01:41.8]} 38... Rxe5 {[%clk 0:01:06.6]} 39. Kf3
{[%clk 0:01:39]} 39... Re3+ {[%clk 0:01:06.6]} 40. Kf2 {[%clk 0:01:37.2]} 40...
Rxc3 {[%clk 0:01:06.4]} 0-1

[Event "*** SCC Grand Prix: Titled Tuesday Blitz"]
[Site "Chess.com"]
[Date "2020.06.02"]
[Round "3"]
[White "davigator"]
[Black "abfchess"]
[Result "1-0"]
[WhiteElo "2316"]
[BlackElo "2079"]
[TimeControl "180+1"]
[EndTime "10:27:09 PDT"]
[Termination "davigator won by resignation"]

1. e4 {[%clk 0:03:00.9]} 1... e6 {[%clk 0:03:00]} 2. d4 {[%clk 0:03:00.4]} 2...
d5 {[%clk 0:02:59.8]} 3. Nc3 {[%clk 0:03:00.5]} 3... Nf6 {[%clk 0:02:59.1]} 4.
e5 {[%clk 0:03:00.2]} 4... Nfd7 {[%clk 0:02:58]} 5. f4 {[%clk 0:03:00.2]} 5...
c5 {[%clk 0:02:58]} 6. Nf3 {[%clk 0:03:00.2]} 6... Nc6 {[%clk 0:02:57.9]} 7. Be3
{[%clk 0:03:00.2]} 7... a6 {[%clk 0:02:56.9]} 8. Qd2 {[%clk 0:02:59.1]} 8... b5
{[%clk 0:02:54.6]} 9. Nd1 {[%clk 0:02:58.3]} 9... Bb7 {[%clk 0:02:54.3]} 10. c3
{[%clk 0:02:57.7]} 10... Be7 {[%clk 0:02:54.3]} 11. Bd3 {[%clk 0:02:57.1]} 11...
b4 {[%clk 0:02:52]} 12. f5 {[%clk 0:02:56.2]} 12... bxc3 {[%clk 0:02:43.7]} 13.
bxc3 {[%clk 0:02:53.8]} 13... Qa5 {[%clk 0:02:42.2]} 14. fxe6 {[%clk 0:02:46.7]}
14... fxe6 {[%clk 0:02:43.1]} 15. O-O {[%clk 0:02:40.9]} 15... cxd4 {[%clk
0:02:37.3]} 16. Nxd4 {[%clk 0:02:40.1]} 16... Nc5 {[%clk 0:02:27.1]} 17. Bc2
{[%clk 0:02:33.3]} 17... Nxd4 {[%clk 0:02:23.3]} 18. Bxd4 {[%clk 0:02:32.6]}
18... Ne4 {[%clk 0:02:16.2]} 19. Bxe4 {[%clk 0:02:18.5]} 19... dxe4 {[%clk
0:02:17.1]} 20. Qe3 {[%clk 0:02:18.1]} 20... Rc8 {[%clk 0:01:54.7]} 21. Qh3
{[%clk 0:02:15.3]} 21... Qd5 {[%clk 0:01:24.4]} 22. Ne3 {[%clk 0:02:14]} 22...
Qc6 {[%clk 0:01:24]} 23. Qh5+ {[%clk 0:02:08.4]} 23... g6 {[%clk 0:01:18.1]} 24.
Qh6 {[%clk 0:02:07.7]} 24... Bf8 {[%clk 0:01:17.6]} 25. Qf4 {[%clk 0:02:05.7]}
25... Qd7 {[%clk 0:01:09.3]} 26. Ng4 {[%clk 0:02:04.7]} 26... Bg7 {[%clk
0:00:56.5]} 27. Nf6+ {[%clk 0:02:03.9]} 27... Bxf6 {[%clk 0:00:56.6]} 28. Qxf6
{[%clk 0:02:02.9]} 28... Rg8 {[%clk 0:00:55.7]} 29. Rab1 {[%clk 0:01:59]} 29...
e3 {[%clk 0:00:53.5]} 30. Rxb7 {[%clk 0:01:57.1]} 30... Qxb7 {[%clk 0:00:52]}
31. Qxe6+ {[%clk 0:01:57]} 31... Qe7 {[%clk 0:00:47.8]} 32. Qxg8+ {[%clk
0:01:56.1]} 32... Kd7 {[%clk 0:00:48.3]} 33. Qd5+ {[%clk 0:01:56.2]} 33... Ke8
{[%clk 0:00:47.1]} 34. Bxe3 {[%clk 0:01:51.7]} 34... Rxc3 {[%clk 0:00:46.2]} 35.
Qa8+ {[%clk 0:01:48.2]} 35... Kd7 {[%clk 0:00:45]} 36. Rd1+ {[%clk 0:01:45.9]}
36... Ke6 {[%clk 0:00:44.3]} 37. Qxa6+ {[%clk 0:01:42.7]} 37... Kf5 {[%clk
0:00:43.4]} 38. Rf1+ {[%clk 0:01:41]} 38... Ke4 {[%clk 0:00:43.4]} 39. Bf2
{[%clk 0:01:36.4]} 1-0